fUSD/lending_fUSD_20240129
["ID","MTS","AMOUNT","RATE_DAILY","PERIOD"]
[312986100,1706566241873,-479.07,0.00040275,2]
[312986101,1706566241882,-156.59525524,0.00040286,7]
[312986102,1706566241891,-963.67842191,0.00040682,14]
[312986103,1706566241900,-950.72920926,0.00040881,13]
[312986104,1706566241909,-196.83604684,0.00040978,2]
[312986105,1706566241918,-50000.0,0.00041,31]
[312986106,1706566241927,-2569.43701716,0.00041,4]
[312986107,1706566241936,-541.88409101,0.00041,120]
[312986108,1706566241945,-300.0,0.00041,33]
[312986109,1706566241955,-201.45,0.00041096,2]
[312986110,1706566241964,-150.0,0.00041096,2]
[312986111,1706566241973,-1000.0,0.000414,2]
[312986112,1706566241982,-160.37335377,0.00041533,15]
[312986113,1706566241993,-204.97,0.000416,7]
[312986114,1706566242003,-156.59525524,0.00041743,13]
[312986115,1706566242013,-2005.68104518,0.00041747,5]
[312986116,1706566242023,-150.0,0.0004179,30]
[312986117,1706566242033,-786.58502121,0.00041838,34]
[312986118,1706566242043,-25612.0371,0.00041889,7]
[312986119,1706566242054,-1275.16272656,0.00041889,31]
[312986120,1706566242064,-677.22005322,0.00041889,30]
[312986121,1706566242074,-2150.34397498,0.00041889,30]
[312986122,1706566242084,-257.64023313,0.00041889,30]
[312986123,1706566242094,-280.37854432,0.00041889,30]
[312986124,1706566242105,-1729.33494002,0.00041889,7]
[312986125,1706566242114,-6602.92016301,0.00041889,8]
[312986126,1706566242124,-178.88637905,0.00041889,120]
[312986127,1706566242133,-1401.06885484,0.00041889,30]
[312986128,1706566242144,-2200.91601841,0.00041889,30]
[312986129,1706566242154,-2393.58778188,0.00041889,30]
[312986130,1706566242164,-2019.73620218,0.00041889,120]
[312986131,1706566242173,-169.58775303,0.00041889,120]
[312986132,1706566242183,-452.47022897,0.00041889,30]
[312986133,1706566242193,-302.38584451,0.00041889,30]
[312986134,1706566242202,-283.97440889,0.00041889,15]
[312986135,1706566242212,-1741.40993,0.00041889,30]
[312986136,1706566242221,-306.682723,0.00041889,30]
[312986137,1706566242230,-2979.29132282,0.00041889,30]
[312986138,1706566242239,-439.71398597,0.00041889,30]
[312986139,1706566242249,-90000.0,0.000419,30]
[312986140,1706566242259,-50000.0,0.00042,32]
[312986143,1706566242269,-162.51535261,0.00042,2]
[312986145,1706566242278,-580.65605791,0.00042,4]
[312986147,1706566242287,-300.0,0.00042,34]
[312986149,1706566242296,-2004.12,0.000421,2]
[312986151,1706566242306,-150.0,0.00042177,2]
[312986153,1706566242316,-570.0,0.00042429,7]
[312986154,1706566242325,-1000.0,0.000425,2]
[312986155,1706566242334,-479.07,0.00042539,2]
[312986156,1706566242344,-979.433665,0.00042871,11]
[312986157,1706566242353,-769.34124105,0.00042888,32]
[312986158,1706566242362,-50000.0,0.00043,33]
[312986159,1706566242372,-838.77043979,0.00043,7]
[312986160,1706566242381,-300.0,0.00043,35]
[312986161,1706566242390,-156.59525524,0.000432,18]
[312986162,1706566242399,-963.67842191,0.00043236,18]
[312986163,1706566242409,-150.0,0.00043259,2]
[312986164,1706566242418,-2005.68104518,0.00043326,5]
[312986165,1706566242427,-7999.99,0.00043715,30]
[312986166,1706566242436,-2004.12,0.00043715,2]
[312986167,1706566242446,-447.86229267,0.000438,30]
[312986168,1706566242456,-500.0,0.00043835,120]
[312986169,1706566242465,-500.0,0.00043835,120]
[312986170,1706566242475,-154.75584348,0.00043835,120]
[312986171,1706566242484,-644.14,0.00043836,15]
[312986172,1706566242494,-500.0,0.00043836,34]
[312986173,1706566242504,-50000.0,0.00044,34]
[312986174,1706566242514,-1060.73083128,0.00044,31]
[312986175,1706566242524,-186.71634084,0.00044,32]
[312986176,1706566242534,-300.0,0.00044,36]
[312986177,1706566242544,-1000.0,0.000441,2]
[312986178,1706566242554,-150.0,0.0004434,2]
[312986179,1706566242563,-156.59525524,0.00044657,24]
[312986180,1706566242573,-968.7079,0.00044699,2]
[312986182,1706566242582,-479.07,0.00044803,2]
[312986184,1706566242591,-153.48,0.000449,5]
[312986186,1706566242601,-153.48,0.000449,5]
[312986188,1706566242610,-1416.9,0.000449,5]
[312986190,1706566242620,-1416.9,0.000449,5]
[312986192,1706566242629,-1416.9,0.000449,5]
[312986193,1706566242638,-1416.9,0.000449,5]
[312986195,1706566242647,-1416.9,0.000449,5]
[312986197,1706566242657,-1416.9,0.000449,5]
[312986199,1706566242669,-1416.9,0.000449,5]
[312986200,1706566242679,-1416.9,0.000449,5]
[312986201,1706566242689,-1416.9,0.000449,5]
[312986203,1706566242698,-1416.9,0.000449,5]
[312986205,1706566242709,-1416.9,0.000449,5]
[312986207,1706566242718,-1416.9,0.000449,5]
[312986209,1706566242727,-1416.9,0.000449,5]
[312986210,1706566242737,-1416.9,0.000449,5]
[312986211,1706566242746,-1416.9,0.000449,5]
[312986212,1706566242756,-1416.9,0.000449,5]
[312986213,1706566242766,-1416.9,0.000449,5]
[312986214,1706566242775,-1416.9,0.000449,5]
[312986215,1706566242785,-1416.9,0.000449,5]
[312986216,1706566242795,-1416.9,0.000449,5]
[312986217,1706566242805,-2005.68104518,0.00044905,5]
[312986218,1706566242816,-321.0,0.0004499,2]
[312986219,1706566242825,-220.0,0.0004499,2]
[312986220,1706566242835,-1000.0,0.00044998,31]
[312986221,1706566242846,-50000.0,0.00045,35]
[312986222,1706566242857,-253.05044787,0.00045,4]
[312986223,1706566242867,-944.80741323,0.00045,30]
[312986224,1706566242877,-743.78204118,0.00045,30]
[312986225,1706566242888,-281.2757944,0.00045,120]
[312986226,1706566242897,-446.02947764,0.00045,4]
[312986227,1706566242908,-977.09471164,0.00045,30]
[312986228,1706566242917,-300.0,0.00045,37]
[312986229,1706566242927,-200.0,0.00045,2]
[312986231,1706566242937,-5473.0,0.00045,2]
[312986233,1706566242946,-1000.0,0.000452,2]
[312986235,1706566242955,-2004.12,0.0004533,2]
[312986237,1706566242965,-150.0,0.00045422,2]
[312986239,1706566242975,-963.67842191,0.00045791,21]
[312986240,1706566242985,-50000.0,0.00046,36]
[312986241,1706566242995,-188.12491114,0.00046,120]
[312986242,1706566243005,-168.8832864,0.00046,45]
[312986243,1706566243014,-300.0,0.00046,38]
[312986244,1706566243170,-156.59525524,0.00046114,29]
[312986245,1706566243179,-786.58502121,0.00046369,41]
[312986246,1706566243188,-2005.68104518,0.00046484,5]
[312986247,1706566243201,-150.0,0.00046503,2]
[312986248,1706566243211,-500.0,0.00046575,120]
[312986249,1706566243220,-551.34352821,0.00046575,120]
[312986250,1706566243230,-187.5,0.00046575,120]
[312986251,1706566243239,-1500.0,0.000466,2]
[312986252,1706566243249,-500.0,0.000468,2]
[312986253,1706566243258,-1416.69,0.00046849,120]
[312986254,1706566243268,-1171.0,0.00046849,120]
[312986255,1706566243278,-979.433665,0.00046885,13]
[312986256,1706566243287,-2004.12,0.00046945,2]
[312986257,1706566243297,-50000.0,0.00047,37]
[312986258,1706566243306,-532.15993653,0.00047,30]
[312986259,1706566243316,-300.0,0.00047,39]
[312986260,1706566243325,-209.0,0.00047,10]
[312986261,1706566243335,-479.07,0.00047067,2]
[312986262,1706566243344,-156.59525524,0.00047571,35]
[312986263,1706566243353,-644.14,0.00047572,15]
[312986264,1706566243363,-150.0,0.00047585,2]
[312986265,1706566243372,-1000.0,0.000479,2]
[312986266,1706566243382,-500.0,0.00047945,30]
[312986267,1706566243391,-798.26972,0.00047945,15]
[312986268,1706566243401,-150.0,0.00047999,7]
[312986269,1706566243410,-150.0,0.00047999,7]
[312986270,1706566243420,-50000.0,0.00048,38]
[312986271,1706566243429,-300.0,0.00048,30]
[312986272,1706566243439,-800.0,0.00048,4]
[312986273,1706566243448,-500000.0,0.00048,14]
[312986274,1706566243458,-300.0,0.00048,41]
[312986275,1706566243468,-2005.68104518,0.00048063,5]
[312986276,1706566243477,-151.0,0.00048102,2]
[312986277,1706566243487,-250.49088,0.00048102,2]
[312986278,1706566243497,-152.0,0.00048283,3]
[312986279,1706566243507,-963.67842191,0.00048345,24]
[312986280,1706566243516,-1000.0,0.00048484,31]
[312986281,1706566243525,-244.75156499,0.000485,2]
[312986282,1706566243535,-2004.12,0.0004856,2]
[312986283,1706566243544,-150.0,0.00048666,2]
[312986284,1706566243554,-201.756377,0.000487,30]
[312986285,1706566243563,-7083.64736266,0.000489,3]
[312986286,1706566243573,-302.0,0.0004891,4]
[312986287,1706566243583,-5000.0,0.0004898,7]
[312986288,1706566243592,-172.87046736,0.00048987,30]
[312986289,1706566243601,-50000.0,0.00049,39]
[312986290,1706566243610,-206517.21110229,0.00049,4]
[312986291,1706566243620,-6649.08695434,0.00049,30]
[312986292,1706566243630,-550.178373,0.00049,30]
[312986293,1706566243639,-300.0,0.00049,40]
[312986294,1706566243649,-156.59525524,0.00049029,40]
[312986295,1706566243659,-500.0,0.0004904,30]
[312986296,1706566243670,-1445.0,0.0004906,2]
[312986297,1706566243679,-150.0,0.00049068,30]
[312986298,1706566243688,-150.0,0.00049068,30]
[312986299,1706566243697,-150.0,0.00049068,30]
[312986300,1706566243708,-150.0,0.00049068,30]
[312986301,1706566243718,-150.0,0.00049068,30]
[312986302,1706566243727,-150.0,0.00049068,30]
[312986303,1706566243737,-150.0,0.00049068,30]
[312986304,1706566243746,-150.0,0.00049068,30]
[312986305,1706566243755,-150.0,0.00049068,30]
[312986306,1706566243764,-150.0,0.00049068,30]
[312986307,1706566243773,-150.0,0.00049068,30]
[312986308,1706566243782,-150.0,0.00049068,30]
[312986309,1706566243791,-150.0,0.00049068,30]
[312986310,1706566243800,-150.0,0.00049127,30]
[312986311,1706566243809,-209.0,0.00049167,11]
[312986312,1706566243819,-150.0,0.00049185,30]
[312986313,1706566243828,-150.0,0.00049224,30]
[312986314,1706566243837,-150.0,0.00049244,30]
[312986315,1706566243846,-150.0,0.00049295,30]
[312986316,1706566243855,-150.0,0.00049302,30]
[312986317,1706566243868,-375.0,0.00049315,120]
[312986318,1706566243878,-250.0,0.00049315,2]
[312986319,1706566243887,-500.0,0.00049315,12]
[312986320,1706566243896,-750.0,0.00049315,22]
[312986321,1706566243904,-1000.0,0.00049315,32]
[312986322,1706566243913,-1250.0,0.00049315,42]
[312986323,1706566243923,-1500.0,0.00049315,52]
[312986324,1706566243931,-1750.0,0.00049315,62]
[312986325,1706566243940,-2000.0,0.00049315,72]
[312986326,1706566243949,-2250.0,0.00049315,82]
[312986327,1706566243958,-264.85355417,0.00049315,92]
[312986328,1706566243967,-525.66183254,0.00049315,36]
[312986329,1706566243978,-186.52,0.00049315,2]
[312986330,1706566243987,-200.0,0.00049315,60]
[312986331,1706566243998,-150.0,0.00049328,30]
[312986332,1706566244008,-479.07,0.00049331,2]
[312986333,1706566244017,-150.0,0.00049361,30]
[312986334,1706566244026,-150.0,0.0004938,30]
[312986335,1706566244035,-150.0,0.0004942,30]
[312986336,1706566244044,-150.0,0.00049431,30]
[312986337,1706566244053,-150.0,0.00049457,30]
[312986338,1706566244062,-150.0,0.00049478,30]
[312986339,1706566244071,-150.0,0.00049522,30]
[312986340,1706566244080,-150.0,0.00049535,30]
[312986341,1706566244089,-150.0,0.00049537,30]
[312986342,1706566244098,-150.0,0.00049564,30]
[312986343,1706566244107,-150.0,0.00049587,30]
[312986344,1706566244116,-312.20067157,0.00049588,90]
[312986345,1706566244126,-150.0,0.00049596,30]
[312986346,1706566244135,-500.0,0.000496,2]
[312986347,1706566244144,-153.48,0.000496,6]
[312986348,1706566244154,-153.48,0.000496,6]
[312986349,1706566244163,-1416.9,0.000496,6]
[312986350,1706566244173,-1416.9,0.000496,6]
[312986351,1706566244182,-1416.9,0.000496,6]
[312986352,1706566244192,-1416.9,0.000496,6]
[312986353,1706566244209,-1416.9,0.000496,6]
[312986354,1706566244222,-1416.9,0.000496,6]
[312986355,1706566244234,-1416.9,0.000496,6]
[312986356,1706566244243,-1416.9,0.000496,6]
[312986357,1706566244253,-1416.9,0.000496,6]
[312986358,1706566244263,-1416.9,0.000496,6]
[312986359,1706566244273,-1416.9,0.000496,6]
[312986360,1706566244283,-1416.9,0.000496,6]
[312986361,1706566244294,-1416.9,0.000496,6]
[312986362,1706566244303,-1416.9,0.000496,6]
[312986363,1706566244313,-1416.9,0.000496,6]
[312986364,1706566244322,-1416.9,0.000496,6]
[312986365,1706566244332,-1416.9,0.000496,6]
[312986366,1706566244341,-1416.9,0.000496,6]
[312986367,1706566244351,-1416.9,0.000496,6]
[312986368,1706566244360,-1416.9,0.000496,6]
[312986369,1706566244370,-150.0,0.00049613,30]
[312986370,1706566244380,-2005.68104518,0.00049642,5]
[312986371,1706566244389,-150.0,0.00049654,30]
[312986372,1706566244398,-150.0,0.00049691,30]
[312986373,1706566244408,-1968.68595765,0.000497,61]
[312986374,1706566244418,-150.0,0.00049713,30]
[312986375,1706566244427,-604.0,0.00049732,7]
[312986376,1706566244436,-150.0,0.00049748,2]
[312986377,1706566244446,-150.0,0.0004975,30]
[312986378,1706566244455,-150.0,0.00049771,30]
[312986379,1706566244465,-150.0,0.00049795,30]
[312986380,1706566244474,-540.10723113,0.000498,120]
[312986381,1706566244484,-150.0,0.0004983,30]
[312986382,1706566244493,-150.0,0.00049847,30]
[312986383,1706566244502,-150.0,0.00049847,30]
[312986384,1706566244512,-150.0,0.00049847,30]
[312986385,1706566244521,-500.0,0.00049859,5]
[312986386,1706566244530,-500.0,0.00049868,5]
[312986387,1706566244540,-500.0,0.00049877,5]
[312986388,1706566244549,-500.0,0.00049886,5]
[312986389,1706566244558,-150.0,0.00049889,30]
[312986390,1706566244568,-500.0,0.00049894,5]
[312986391,1706566244577,-500.0,0.00049903,5]
[312986392,1706566244586,-500.0,0.00049912,5]
[312986393,1706566244596,-500.0,0.00049921,5]
[312986394,1706566244605,-500.0,0.0004993,5]
[312986395,1706566244614,-500.0,0.00049938,5]
[312986396,1706566244624,-500.0,0.00049947,5]
[312986397,1706566244633,-150.0,0.00049947,30]
[312986398,1706566244642,-500.0,0.00049956,5]
[312986399,1706566244652,-500.0,0.00049965,5]
[312986400,1706566244662,-500.0,0.00049974,5]
[312986401,1706566244672,-150.0,0.00049977,30]
[312986402,1706566244682,-900.0,0.0004998,5]
[312986403,1706566244691,-450.0,0.0004998,5]
[312986404,1706566244700,-500.0,0.00049982,5]
[312986405,1706566244710,-500.0,0.00049991,5]
[312986406,1706566244719,-500.0,0.00049999,120]
[312986407,1706566244729,-500.0,0.00049999,120]
[312986408,1706566244739,-354.3910701,0.00049999,120]
[312986409,1706566244748,-500.0,0.00049999,120]
[312986410,1706566244758,-500.0,0.00049999,120]
[312986411,1706566244767,-500.0,0.00049999,120]
[312986412,1706566244777,-216.46543285,0.00049999,120]
[312986413,1706566244786,-500.0,0.00049999,120]
[312986414,1706566244795,-500.0,0.00049999,120]
[312986415,1706566244804,-500.0,0.00049999,120]
[312986416,1706566244814,-500.0,0.00049999,120]
[312986417,1706566244823,-500.0,0.00049999,120]
[312986418,1706566244833,-500.0,0.00049999,120]
[312986419,1706566244842,-500.0,0.00049999,120]
[312986420,1706566244852,-500.0,0.00049999,120]
[312986421,1706566244861,-500.0,0.00049999,120]
[312986422,1706566244870,-500.0,0.00049999,120]
[312986423,1706566244879,-227.61034311,0.00049999,120]
[312986424,1706566244888,-500.0,0.00049999,120]
[312986425,1706566244898,-500.0,0.00049999,120]
[312986426,1706566244907,-500.0,0.00049999,120]
[312986427,1706566244916,-500.0,0.00049999,120]
[312986428,1706566244925,-500.0,0.00049999,120]
[312986429,1706566244935,-500.0,0.00049999,120]
[312986430,1706566244943,-500.0,0.00049999,120]
[312986431,1706566244953,-463.37096177,0.00049999,120]
[312986432,1706566244963,-339.60292134,0.00049999,120]
[312986433,1706566244972,-500.0,0.00049999,120]
[312986434,1706566244981,-500.0,0.00049999,120]
[312986435,1706566244990,-500.0,0.00049999,120]
[312986436,1706566245000,-500.0,0.00049999,120]
[312986437,1706566245009,-500.0,0.00049999,120]
[312986438,1706566245019,-500.0,0.00049999,120]
[312986439,1706566245028,-500.0,0.00049999,120]
[312986440,1706566245038,-500.0,0.00049999,120]
[312986441,1706566245047,-500.0,0.00049999,120]
[312986442,1706566245056,-500.0,0.00049999,120]
[312986443,1706566245065,-500.0,0.00049999,120]
[312986444,1706566245074,-500.0,0.00049999,120]
[312986445,1706566245083,-500.0,0.00049999,120]
[312986446,1706566245093,-500.0,0.00049999,120]
[312986447,1706566245102,-500.0,0.00049999,120]
[312986448,1706566245111,-500.0,0.00049999,120]
[312986449,1706566245120,-500.0,0.00049999,120]
[312986450,1706566245130,-500.0,0.00049999,120]
[312986451,1706566245139,-500.0,0.00049999,120]
[312986452,1706566245148,-500.0,0.00049999,120]
[312986453,1706566245157,-199.12051513,0.00049999,120]
[312986454,1706566245166,-500.0,0.00049999,120]
[312986455,1706566245175,-500.0,0.00049999,120]
[312986456,1706566245184,-500.0,0.00049999,120]
[312986457,1706566245203,-500.0,0.00049999,120]
[312986458,1706566245214,-408.8420365,0.00049999,120]
[312986459,1706566245224,-500.0,0.00049999,120]
[312986460,1706566245233,-500.0,0.00049999,120]
[312986461,1706566245243,-500.0,0.00049999,120]
[312986462,1706566245253,-500.0,0.00049999,120]
[312986463,1706566245262,-500.0,0.00049999,120]
[312986465,1706566245272,-500.0,0.00049999,120]
[312986467,1706566245282,-500.0,0.00049999,120]
[312986469,1706566245291,-500.0,0.00049999,120]
[312986471,1706566245302,-500.0,0.00049999,120]
[312986473,1706566245311,-500.0,0.00049999,120]
[312986475,1706566245321,-500.0,0.00049999,120]
[312986477,1706566245330,-500.0,0.00049999,120]
[312986478,1706566245340,-500.0,0.00049999,120]
[312986479,1706566245349,-500.0,0.00049999,120]
[312986481,1706566245359,-500.0,0.00049999,120]
[312986483,1706566245368,-500.0,0.00049999,120]
[312986485,1706566245378,-500.0,0.00049999,120]
[312986487,1706566245387,-500.0,0.00049999,120]
[312986489,1706566245397,-640.0,0.00049999,120]
[312986491,1706566245406,-500.0,0.00049999,120]
[312986492,1706566245416,-500.0,0.00049999,120]
[312986494,1706566245425,-350.0,0.00049999,120]
[312986497,1706566245435,-248.63235522,0.00049999,120]
[312986499,1706566245445,-406.09951353,0.00049999,120]
[312986501,1706566245455,-150.0,0.00049999,9]
[312986502,1706566245464,-150.0,0.00049999,9]
[312986503,1706566245474,-150.0,0.00049999,9]
[312986504,1706566245484,-150.0,0.00049999,9]
[312986505,1706566245571,-150.0,0.00049999,9]
[312986506,1706566245580,-150.0,0.00049999,9]
[312986507,1706566245589,-864.88861439,0.0005,2]
[312986508,1706566245598,-2803.86892119,0.0005,10]
[312986509,1706566245607,-570.32545003,0.0005,4]
[312986510,1706566245616,-28928.88093057,0.0005,30]
[312986511,1706566245625,-2959.61158092,0.0005,4]
[312986512,1706566245634,-359.89930562,0.0005,120]
[312986513,1706566245643,-7864.35272421,0.0005,4]
[312986514,1706566245653,-10263.097449,0.0005,40]
[312986515,1706566245664,-173.95567052,0.0005,90]
[312986516,1706566245673,-500.0,0.0005,6]
[312986517,1706566245682,-208984.8603038,0.0005,60]
[312986518,1706566245691,-228.57864467,0.0005,4]
[312986519,1706566245700,-336.23242113,0.0005,4]
[312986520,1706566245711,-1051892.82,0.0005,120]
[312986521,1706566245719,-526.50470538,0.0005,120]
[312986522,1706566245729,-249.80811335,0.0005,4]
[312986523,1706566245738,-454.97371241,0.0005,33]
[312986524,1706566245747,-652719.62,0.0005,120]
[312986525,1706566245757,-1520.537964,0.0005,30]
[312986526,1706566245767,-318.70092462,0.0005,30]
[312986527,1706566245776,-500.0,0.0005,5]
[312986528,1706566245785,-581.10602505,0.0005,30]
[312986529,1706566245794,-350285.93799999,0.0005,28]
[312986530,1706566245803,-16504.0,0.0005,11]
[312986531,1706566245812,-300.0,0.0005,42]
[312986532,1706566245821,-1390.331885,0.0005,31]
[312986533,1706566245830,-200.0,0.0005,30]
[312986534,1706566245841,-5473.0,0.0005,30]
[312986535,1706566245849,-6629.55823254,0.0005,4]
[312986536,1706566245858,-2701.23172994,0.0005,2]
[312986538,1706566245868,-150.0,0.00050003,30]
[312986540,1706566245876,-150.0,0.00050006,30]
[312986542,1706566245885,-150.0,0.00050059,30]
[312986544,1706566245894,-150.0,0.00050065,30]
[312986546,1706566245903,-150.0,0.00050106,30]
[312986548,1706566245912,-150.0,0.00050123,30]
[312986550,1706566245921,-150.0,0.00050158,30]
[312986551,1706566245930,-150.0,0.00050158,30]
[312986552,1706566245939,-150.0,0.00050158,30]
[312986553,1706566245948,-2004.12,0.00050175,2]
[312986554,1706566245957,-154.47780883,0.00050178,30]
[312986555,1706566245966,-150.0,0.00050182,30]
[312986556,1706566245975,-202.013,0.00050198,60]
[312986557,1706566245984,-150.0,0.00050204,30]
[312986558,1706566245993,-150.0,0.00050236,30]
[312986559,1706566246002,-150.0,0.0005024,30]
[312986560,1706566246011,-150.0,0.00050299,30]
[312986561,1706566246020,-150.0,0.00050314,30]
[312986562,1706566246029,-150.0,0.00050358,30]
[312986563,1706566246039,-150.0,0.00050366,30]
[312986564,1706566246048,-3164.0,0.0005039,2]
[312986565,1706566246057,-1390.0,0.0005039,2]
[312986566,1706566246066,-419.75,0.00050411,30]
[312986567,1706566246075,-341.14,0.00050411,30]
[312986568,1706566246084,-201.21,0.00050411,30]
[312986569,1706566246093,-341.14,0.00050411,30]
[312986570,1706566246102,-341.14,0.00050411,30]
[312986571,1706566246111,-341.14,0.00050411,30]
[312986572,1706566246120,-150.0,0.00050416,30]
[312986573,1706566246129,-253.01096368,0.00050422,2]
[312986574,1706566246138,-677.65422016,0.00050422,2]
[312986575,1706566246147,-150.0,0.00050431,30]
[312986576,1706566246156,-5408.5509333,0.00050465,2]
[312986577,1706566246165,-150.0,0.0005047,30]
[312986578,1706566246174,-150.0,0.00050475,30]
[312986579,1706566246183,-156.59525524,0.00050486,46]
[312986580,1706566246192,-2349.9881134,0.00050498,4]
[312986581,1706566246202,-202.013,0.00050498,60]
[312986582,1706566246212,-623.08608683,0.00050499,2]
[312986583,1706566246222,-150.0,0.00050499,10]
[312986584,1706566246231,-150.0,0.00050499,10]
[312986585,1706566246240,-1000000.0,0.000505,120]
[312986586,1706566246250,-150.0,0.00050522,30]
[312986587,1706566246259,-150.0,0.00050534,30]
[312986588,1706566246268,-150.0,0.00050555,30]
[312986589,1706566246277,-1445.0,0.0005056,4]
[312986590,1706566246287,-150.0,0.00050592,30]
[312986591,1706566246296,-150.0,0.00050626,30]
[312986592,1706566246305,-150.0,0.00050626,30]
[312986593,1706566246314,-150.0,0.00050626,30]
[312986594,1706566246323,-150.0,0.00050651,30]
[312986595,1706566246332,-150.0,0.00050658,30]
[312986596,1706566246342,-150.5,0.0005066,120]
[312986597,1706566246351,-293.73,0.0005067,120]
[312986598,1706566246360,-4084.0,0.0005067,120]
[312986599,1706566246369,-2677.0,0.0005067,120]
[312986600,1706566246378,-150.5,0.0005067,120]
[312986601,1706566246387,-154.47780883,0.00050678,30]
[312986602,1706566246396,-150.5,0.0005068,120]
[312986603,1706566246405,-166.6,0.0005068,120]
[312986604,1706566246414,-4084.0,0.0005068,120]
[312986605,1706566246424,-2677.0,0.0005068,120]
[312986606,1706566246433,-150.5,0.0005068,120]
[312986607,1706566246443,-150.5,0.0005069,120]
[312986608,1706566246452,-150.5,0.0005069,120]
[312986609,1706566246463,-4084.0,0.0005069,120]
[312986610,1706566246472,-2677.0,0.0005069,120]
[312986611,1706566246482,-1000.0,0.000507,2]
[312986612,1706566246492,-2000.0,0.000507,2]
[312986613,1706566246502,-200.0,0.000507,30]
[312986614,1706566246513,-150.0,0.00050704,30]
[312986615,1706566246523,-150.0,0.00050709,30]
[312986616,1706566246533,-150.0,0.00050768,30]
[312986617,1706566246543,-150.0,0.00050781,30]
[312986618,1706566246553,-151.013,0.00050798,60]
[312986619,1706566246563,-680.84028131,0.00050816,30]
[312986620,1706566246572,-150.0,0.00050827,30]
[312986621,1706566246582,-150.0,0.00050829,2]
[312986622,1706566246591,-195.96504941,0.00050849,120]
[312986623,1706566246599,-150.0,0.00050885,30]
[312986624,1706566246609,-150.0,0.00050885,30]
[312986625,1706566246618,-150.0,0.00050885,30]
[312986626,1706566246627,-150.0,0.00050885,30]
[312986627,1706566246636,-150.0,0.00050885,30]
[312986628,1706566246645,-958.0,0.0005089,2]
[312986629,1706566246654,-1133.0,0.0005089,2]
[312986630,1706566246666,-160.37335377,0.000509,27]
[312986631,1706566246675,-979.433665,0.000509,14]
[312986632,1706566246685,-963.67842191,0.000509,27]
[312986633,1706566246694,-786.58502121,0.000509,48]
[312986634,1706566246704,-150.0,0.00050937,30]
[312986635,1706566246714,-150.0,0.00050944,30]
[312986636,1706566246723,-17135.8843333,0.00050965,2]
[312986637,1706566246732,-12328.6401666,0.00050965,2]
[312986638,1706566246742,-11552.6316666,0.00050965,2]
[312986639,1706566246751,-1208.0,0.00050991,30]
[312986640,1706566246761,-150.0,0.00050999,10]
[312986641,1706566246769,-150.0,0.00050999,10]
[312986642,1706566246779,-50000.0,0.00051,41]
[312986643,1706566246788,-1783.5341465,0.00051,120]
[312986644,1706566246798,-1000000.0,0.00051,120]
[312986645,1706566246806,-300.0,0.00051,43]
[312986646,1706566246815,-161000.0,0.00051,120]
[312986647,1706566246825,-151.0,0.00051,14]
[312986648,1706566246835,-375.817034,0.00051,14]
[312986649,1706566246844,-375.817034,0.00051,14]